fUST/lending_fUST_20240226
["ID","MTS","AMOUNT","RATE_DAILY","PERIOD"]
[315178074,1708905041777,-1974.91,0.00019178,2]
[315178075,1708905041789,-586.26,0.00019178,2]
[315178076,1708905041801,-518.14198464,0.00019178,2]
[315178077,1708905041815,-234.52147682,0.00019178,2]
[315178078,1708905041827,-500.0,0.00019178,2]
[315178079,1708905041839,-500.0,0.00019178,2]
[315178080,1708905041851,-500.0,0.00019178,2]
[315178081,1708905041862,-500.0,0.00019178,2]
[315178082,1708905041873,-500.0,0.00019178,2]
[315178083,1708905041884,-500.0,0.00019178,2]
[315178084,1708905041898,-359.75255587,0.00019178,2]
[315178085,1708905041910,-10661.94,0.00019178,2]
[315178086,1708905041923,-500.0,0.00019178,2]
[315178087,1708905041934,-500.50393287,0.00019178,2]
[315178088,1708905041947,-500.0,0.00019178,2]
[315178089,1708905041959,-500.0,0.00019178,2]
[315178090,1708905041972,-500.0,0.00019178,2]
[315178091,1708905041984,-500.0,0.00019178,2]
[315178092,1708905041997,-500.0,0.00019178,2]
[315178093,1708905042009,-625.63013097,0.00019178,2]
[315178094,1708905042020,-699.07,0.00019178,2]
[315178095,1708905042031,-2899.39,0.00019178,2]
[315178096,1708905042042,-500.0,0.00019178,2]
[315178097,1708905042053,-20907.33,0.00019178,2]
[315178098,1708905042065,-500.0,0.00019178,2]
[315178099,1708905042077,-500.0,0.00019178,2]
[315178100,1708905042088,-2257.89,0.00019178,2]
[315178101,1708905042099,-500.0,0.00019178,2]
[315178102,1708905042110,-500.0,0.00019178,2]
[315178103,1708905042121,-500.0,0.00019178,2]
[315178104,1708905042133,-500.0,0.00019178,2]
[315178105,1708905042143,-500.0,0.00019178,2]
[315178106,1708905042154,-3160.82,0.00019178,2]
[315178107,1708905042166,-500.0,0.00019178,2]
[315178108,1708905042177,-500.0,0.00019178,2]
[315178109,1708905042188,-2819.16,0.00019178,2]
[315178110,1708905042198,-500.0,0.00019178,2]
[315178111,1708905042210,-500.0,0.00019178,2]
[315178112,1708905042222,-500.0,0.00019178,2]
[315178113,1708905042233,-500.0,0.00019178,2]
[315178114,1708905042244,-1444.76,0.00019178,2]
[315178115,1708905042255,-500.0,0.00019178,2]
[315178116,1708905042266,-500.0,0.00019178,2]
[315178117,1708905042276,-500.0,0.00019178,2]
[315178118,1708905042287,-500.0,0.00019178,2]
[315178119,1708905042297,-500.0,0.00019178,2]
[315178120,1708905042308,-266.29835762,0.00019178,2]
[315178121,1708905042318,-1148.66,0.00019178,2]
[315178122,1708905042329,-500.0,0.00019178,2]
[315178123,1708905042339,-500.0,0.00019178,2]
[315178124,1708905042350,-199.63994036,0.00019178,2]
[315178125,1708905042361,-1453.17,0.00019178,2]
[315178126,1708905042371,-500.0,0.00019178,2]
[315178127,1708905042382,-1498.39,0.00019178,2]
[315178128,1708905042392,-4271.11,0.00019178,2]
[315178129,1708905042403,-2358.42,0.00019178,2]
[315178130,1708905042413,-500.0,0.00019178,2]
[315178131,1708905042423,-500.0,0.00019178,2]
[315178132,1708905042434,-500.0,0.00019178,2]
[315178133,1708905042444,-151.0,0.00019178,2]
[315178134,1708905042454,-500.0,0.00019178,2]
[315178135,1708905042466,-500.0,0.00019178,2]
[315178136,1708905042476,-500.0,0.00019178,2]
[315178137,1708905042487,-812.31,0.00019178,2]
[315178138,1708905042497,-500.0,0.00019178,2]
[315178139,1708905042626,-400.0,0.00019178,2]
[315178140,1708905042643,-165.103317,0.00019178,2]
[315178141,1708905042653,-163.09372,0.00019178,2]
[315178142,1708905042663,-166.666666,0.00019178,2]
[315178143,1708905042672,-166.553266,0.00019178,2]
[315178144,1708905042681,-5506.85853467,0.00019239,2]
[315178145,1708905042690,-174.0,0.000194,2]
[315178146,1708905042699,-243.58118859,0.00019451,2]
[315178147,1708905042708,-500.0,0.00019451,2]
[315178148,1708905042717,-500.0,0.00019451,2]
[315178149,1708905042726,-500.0,0.00019451,2]
[315178150,1708905042735,-500.0,0.00019451,2]
[315178151,1708905042744,-333.69686052,0.00019452,2]
[315178152,1708905042753,-500.0,0.00019452,2]
[315178153,1708905042766,-500.0,0.00019452,2]
[315178154,1708905042775,-397.38411833,0.00019452,2]
[315178155,1708905042783,-500.0,0.00019452,2]
[315178156,1708905042793,-500.0,0.00019452,2]
[315178157,1708905042802,-500.0,0.00019452,2]
[315178158,1708905042811,-500.0,0.00019452,2]
[315178159,1708905042821,-722.27,0.00019452,2]
[315178160,1708905042830,-1425.67,0.00019452,2]
[315178161,1708905042839,-499.60684837,0.00019452,2]
[315178162,1708905042848,-506.73604209,0.00019452,2]
[315178163,1708905042858,-500.0,0.00019452,2]
[315178164,1708905042867,-634.56249942,0.00019452,2]
[315178165,1708905042876,-500.0,0.00019452,2]
[315178166,1708905042885,-1000.0,0.00019452,2]
[315178167,1708905042894,-500.0,0.00019452,2]
[315178168,1708905042903,-500.0,0.00019452,2]
[315178169,1708905042912,-521.6383826,0.00019452,2]
[315178170,1708905042920,-500.0,0.00019452,2]
[315178171,1708905042929,-500.0,0.00019452,2]
[315178172,1708905042939,-500.0,0.00019452,2]
[315178173,1708905042949,-500.0,0.00019452,2]
[315178174,1708905042958,-500.0,0.00019452,2]
[315178175,1708905042967,-500.0,0.00019452,2]
[315178176,1708905042976,-500.0,0.00019452,2]
[315178177,1708905042985,-500.0,0.00019452,2]
[315178178,1708905042995,-614.95785219,0.00019452,2]
[315178179,1708905043004,-510.22306871,0.00019452,2]
[315178180,1708905043013,-592.55105003,0.00019452,2]
[315178181,1708905043022,-500.0,0.00019452,2]
[315178182,1708905043032,-501.27644702,0.00019452,2]
[315178183,1708905043041,-500.0,0.00019452,2]
[315178184,1708905043051,-500.0,0.00019452,2]
[315178185,1708905043060,-500.0,0.00019452,2]
[315178186,1708905043069,-500.0,0.00019452,2]
[315178187,1708905043078,-500.0,0.00019452,2]
[315178188,1708905043088,-500.0,0.00019452,2]
[315178189,1708905043097,-500.0,0.00019452,2]
[315178190,1708905043106,-500.0,0.00019452,2]
[315178191,1708905043115,-820.72,0.00019452,2]
[315178192,1708905043124,-500.0,0.00019452,2]
[315178193,1708905043133,-501.97126216,0.00019452,2]
[315178194,1708905043142,-617.2,0.00019452,2]
[315178195,1708905043151,-500.0,0.00019452,2]
[315178196,1708905043160,-345.59939046,0.00019452,2]
[315178197,1708905043169,-500.0,0.00019452,2]
[315178198,1708905043178,-500.0,0.00019452,2]
[315178199,1708905043187,-500.0,0.00019452,2]
[315178200,1708905043196,-438.44196691,0.00019452,2]
[315178201,1708905043205,-500.0,0.00019452,2]
[315178202,1708905043214,-500.0,0.00019452,2]
[315178203,1708905043224,-501.59136464,0.00019452,2]
[315178204,1708905043233,-500.0,0.00019452,2]
[315178205,1708905043243,-500.0,0.00019452,2]
[315178206,1708905043252,-500.0,0.00019452,2]
[315178207,1708905043261,-500.0,0.00019452,2]
[315178208,1708905043271,-500.0,0.00019452,2]
[315178209,1708905043280,-500.0,0.00019452,2]
[315178210,1708905043289,-500.0,0.00019452,2]
[315178211,1708905043299,-500.0,0.00019452,2]
[315178212,1708905043308,-500.0,0.00019452,2]
[315178213,1708905043317,-500.0,0.00019452,2]
[315178214,1708905043326,-577.39883783,0.00019452,2]
[315178215,1708905043336,-500.0,0.00019452,2]
[315178216,1708905043345,-500.0,0.00019452,2]
[315178217,1708905043354,-500.0,0.00019452,2]
[315178218,1708905043363,-586.83187142,0.00019452,2]
[315178219,1708905043373,-500.0,0.00019452,2]
[315178220,1708905043382,-500.0,0.00019452,2]
[315178221,1708905043391,-500.0,0.00019452,2]
[315178222,1708905043400,-500.0,0.00019452,2]
[315178223,1708905043410,-500.0,0.00019452,2]
[315178224,1708905043418,-500.17639548,0.00019452,2]
[315178225,1708905043428,-500.0,0.00019452,2]
[315178226,1708905043437,-178.52864785,0.00019452,2]
[315178227,1708905043446,-500.81653216,0.00019452,2]
[315178228,1708905043455,-500.0,0.00019452,2]
[315178229,1708905043465,-500.0,0.00019452,2]
[315178230,1708905043475,-500.0,0.00019452,2]
[315178231,1708905043484,-500.0,0.00019452,2]
[315178232,1708905043493,-2101.54,0.00019452,2]
[315178233,1708905043503,-1308.09,0.00019452,2]
[315178234,1708905043512,-500.0,0.00019452,2]
[315178235,1708905043521,-500.0,0.00019452,2]
[315178236,1708905043530,-500.0,0.00019452,2]
[315178237,1708905043540,-500.0,0.00019452,2]
[315178239,1708905043549,-513.35654408,0.00019452,2]
[315178240,1708905043558,-500.0,0.00019452,2]
[315178241,1708905043567,-500.0,0.00019452,2]
[315178242,1708905043576,-500.0,0.00019452,2]
[315178243,1708905043586,-1643.7,0.00019452,2]
[315178244,1708905043595,-500.0,0.00019452,2]
[315178245,1708905043604,-500.0,0.00019452,2]
[315178246,1708905043614,-500.0,0.00019452,2]
[315178247,1708905043623,-500.0,0.00019452,2]
[315178248,1708905043632,-500.17034226,0.00019452,2]
[315178249,1708905043641,-500.0,0.00019452,2]
[315178250,1708905043650,-232.63178787,0.00019452,2]
[315178251,1708905043659,-500.0,0.00019452,2]
[315178252,1708905043668,-500.0,0.00019452,2]
[315178253,1708905043678,-500.0,0.00019452,2]
[315178254,1708905043687,-500.0,0.00019452,2]
[315178255,1708905043696,-500.0,0.00019452,2]
[315178256,1708905043705,-500.0,0.00019452,2]
[315178257,1708905043714,-500.0,0.00019452,2]
[315178258,1708905043723,-500.0,0.00019452,2]
[315178259,1708905043733,-500.0,0.00019452,2]
[315178260,1708905043743,-500.0,0.00019452,2]
[315178261,1708905043755,-698.4,0.00019452,2]
[315178262,1708905043766,-500.0,0.00019452,2]
[315178263,1708905043775,-500.0,0.00019452,2]
[315178264,1708905043784,-500.0,0.00019452,2]
[315178265,1708905043795,-500.0,0.00019452,2]
[315178266,1708905043804,-500.0,0.00019452,2]
[315178267,1708905043813,-500.0,0.00019452,2]
[315178268,1708905043823,-500.0,0.00019452,2]
[315178269,1708905043833,-500.0,0.00019452,2]
[315178270,1708905043844,-1799.5,0.00019452,2]
[315178271,1708905043853,-935.75,0.00019452,2]
[315178272,1708905043862,-500.0,0.00019452,2]
[315178273,1708905043872,-500.0,0.00019452,2]
[315178274,1708905043881,-500.0,0.00019452,2]
[315178275,1708905043891,-500.0,0.00019452,2]
[315178276,1708905043900,-544.51786006,0.00019452,2]
[315178277,1708905043910,-500.0,0.00019452,2]
[315178278,1708905043919,-500.0,0.00019452,2]
[315178279,1708905043928,-500.0,0.00019452,2]
[315178280,1708905043938,-500.0,0.00019452,2]
[315178281,1708905043947,-500.0,0.00019452,2]
[315178282,1708905043956,-501.22711499,0.00019452,2]
[315178283,1708905043965,-500.0,0.00019452,2]
[315178284,1708905043974,-500.0,0.00019452,2]
[315178285,1708905043984,-720.77,0.00019452,2]
[315178286,1708905043993,-500.0,0.00019452,2]
[315178287,1708905044003,-500.0,0.00019452,2]
[315178288,1708905044012,-541.94821274,0.00019452,2]
[315178289,1708905044021,-389.05948452,0.00019452,2]
[315178290,1708905044031,-640.14797302,0.00019452,2]
[315178291,1708905044041,-500.0,0.00019452,2]
[315178292,1708905044053,-500.0,0.00019452,2]
[315178293,1708905044063,-500.0,0.00019452,2]
[315178294,1708905044072,-500.0,0.00019452,2]
[315178295,1708905044082,-500.0,0.00019452,2]
[315178296,1708905044091,-500.0,0.00019452,2]
[315178297,1708905044100,-500.0,0.00019452,2]
[315178298,1708905044110,-500.0,0.00019452,2]
[315178299,1708905044120,-500.0,0.00019452,2]
[315178300,1708905044129,-11294.05,0.00019452,2]
[315178301,1708905044138,-500.0,0.00019452,2]
[315178302,1708905044148,-500.0,0.00019452,2]
[315178303,1708905044157,-500.0,0.00019452,2]
[315178304,1708905044166,-500.0,0.00019452,2]
[315178305,1708905044175,-1834.68,0.00019452,2]
[315178306,1708905044184,-500.0,0.00019452,2]
[315178307,1708905044193,-500.0,0.00019452,2]
[315178308,1708905044202,-2773.39,0.00019452,2]
[315178309,1708905044211,-500.0,0.00019452,2]
[315178310,1708905044220,-500.0,0.00019452,2]
[315178311,1708905044229,-500.0,0.00019452,2]
[315178312,1708905044237,-500.0,0.00019452,2]
[315178313,1708905044246,-218.11779643,0.00019452,2]
[315178314,1708905044255,-3995.5,0.00019452,2]
[315178315,1708905044265,-211.99734928,0.00019452,2]
[315178316,1708905044274,-515.7261257,0.00019452,2]
[315178317,1708905044283,-500.0,0.00019452,2]
[315178318,1708905044293,-500.0,0.00019452,2]
[315178319,1708905044301,-609.6,0.00019452,2]
[315178320,1708905044310,-500.0,0.00019452,2]
[315178321,1708905044319,-500.0,0.00019452,2]
[315178322,1708905044328,-500.0,0.00019452,2]
[315178323,1708905044337,-500.0,0.00019452,2]
[315178324,1708905044346,-1000.0,0.00019452,2]
[315178325,1708905044355,-1912.56,0.00019452,2]
[315178326,1708905044364,-500.0,0.00019452,2]
[315178327,1708905044373,-500.0,0.00019452,2]
[315178328,1708905044383,-500.0,0.00019452,2]
[315178329,1708905044392,-2620.14,0.00019452,2]
[315178330,1708905044401,-500.0,0.00019452,2]
[315178331,1708905044410,-500.0,0.00019452,2]
[315178332,1708905044419,-500.0,0.00019452,2]
[315178333,1708905044428,-500.0,0.00019452,2]
[315178334,1708905044437,-1998.21,0.00019452,2]
[315178335,1708905044446,-500.0,0.00019452,2]
[315178336,1708905044454,-500.0,0.00019452,2]
[315178337,1708905044464,-500.0,0.00019452,2]
[315178338,1708905044472,-500.0,0.00019452,2]
[315178339,1708905044481,-500.0,0.00019452,2]
[315178340,1708905044491,-500.0,0.00019452,2]
[315178341,1708905044500,-500.0,0.00019452,2]
[315178342,1708905044509,-20576.55,0.00019452,2]
[315178343,1708905044517,-616.26,0.00019452,2]
[315178344,1708905044526,-500.0,0.00019452,2]
[315178345,1708905044535,-500.0,0.00019452,2]
[315178346,1708905044544,-500.0,0.00019452,2]
[315178347,1708905044553,-500.0,0.00019452,2]
[315178348,1708905044562,-500.0,0.00019452,2]
[315178349,1708905044571,-500.0,0.00019452,2]
[315178350,1708905044581,-501.43563149,0.00019452,2]
[315178351,1708905044590,-500.0,0.00019452,2]
[315178352,1708905044599,-500.0,0.00019452,2]
[315178353,1708905044608,-500.0,0.00019452,2]
[315178354,1708905044618,-500.0,0.00019452,2]
[315178355,1708905044627,-500.0,0.00019452,2]
[315178356,1708905044636,-500.0,0.00019452,2]
[315178357,1708905044645,-500.0,0.00019452,2]
[315178358,1708905044654,-500.0,0.00019452,2]
[315178359,1708905044664,-500.0,0.00019452,2]
[315178360,1708905044674,-500.0,0.00019452,2]
[315178361,1708905044683,-1634.14,0.00019452,2]
[315178362,1708905044692,-500.0,0.00019452,2]
[315178363,1708905044701,-500.0,0.00019452,2]
[315178364,1708905044710,-500.0,0.00019452,2]
[315178365,1708905044720,-500.0,0.00019452,2]
[315178366,1708905044729,-7604.98,0.00019452,2]
[315178367,1708905044738,-586.26,0.00019452,2]
[315178368,1708905044747,-1974.91,0.00019452,2]
[315178369,1708905044756,-500.0,0.00019452,2]
[315178370,1708905044770,-10661.94,0.00019452,2]
[315178371,1708905044778,-500.0,0.00019452,2]
[315178372,1708905044788,-500.0,0.00019452,2]
[315178373,1708905044798,-500.0,0.00019452,2]
[315178374,1708905044808,-500.0,0.00019452,2]
[315178375,1708905044818,-500.0,0.00019452,2]
[315178376,1708905044829,-500.0,0.00019452,2]
[315178377,1708905044839,-699.07,0.00019452,2]
[315178378,1708905044849,-2899.39,0.00019452,2]
[315178379,1708905044860,-504.30900144,0.00019452,2]
[315178380,1708905044870,-20907.33,0.00019452,2]
[315178381,1708905044879,-500.0,0.00019452,2]
[315178382,1708905044888,-500.0,0.00019452,2]
[315178383,1708905044897,-2257.89,0.00019452,2]
[315178384,1708905044906,-500.0,0.00019452,2]
[315178385,1708905044915,-500.53936311,0.00019452,2]
[315178386,1708905044924,-420.68246109,0.00019452,2]
[315178387,1708905044933,-500.0,0.00019452,2]
[315178388,1708905044942,-500.0,0.00019452,2]
[315178389,1708905044952,-3160.82,0.00019452,2]
[315178390,1708905044963,-500.0,0.00019452,2]
[315178391,1708905044971,-500.0,0.00019452,2]
[315178392,1708905044981,-2819.16,0.00019452,2]
[315178393,1708905044992,-500.0,0.00019452,2]
[315178394,1708905045001,-500.0,0.00019452,2]
[315178395,1708905045011,-500.0,0.00019452,2]
[315178396,1708905045022,-500.0,0.00019452,2]
[315178397,1708905045033,-1444.76,0.00019452,2]
[315178398,1708905045045,-500.0,0.00019452,2]
[315178399,1708905045055,-500.0,0.00019452,2]
[315178400,1708905045064,-500.0,0.00019452,2]
[315178401,1708905045074,-500.0,0.00019452,2]
[315178402,1708905045083,-1148.66,0.00019452,2]
[315178403,1708905045093,-500.0,0.00019452,2]
[315178404,1708905045102,-1453.17,0.00019452,2]
[315178405,1708905045111,-500.0,0.00019452,2]
[315178406,1708905045121,-1498.39,0.00019452,2]
[315178407,1708905045224,-4271.11,0.00019452,2]
[315178408,1708905045234,-2358.42,0.00019452,2]
[315178409,1708905045244,-500.0,0.00019452,2]
[315178410,1708905045253,-151.0,0.00019452,2]
[315178411,1708905045263,-500.0,0.00019452,2]
[315178412,1708905045273,-500.0,0.00019452,2]
[315178413,1708905045282,-500.0,0.00019452,2]
[315178414,1708905045291,-812.31,0.00019452,2]
[315178415,1708905045300,-500.0,0.00019452,2]
[315178416,1708905045310,-182.51135653,0.00019464,2]
[315178417,1708905045319,-7321.61669943,0.00019465,2]
[315178418,1708905045328,-182.51135653,0.00019468,2]
[315178419,1708905045338,-182.51135653,0.0001947,2]
[315178420,1708905045346,-7321.61669943,0.00019483,2]
[315178421,1708905045355,-7321.61669943,0.00019485,2]
[315178422,1708905045364,-2000.0,0.000195,2]
[315178423,1708905045373,-166.666666,0.00019627,2]
[315178424,1708905045383,-5523.32487849,0.000197,2]
[315178425,1708905045392,-5523.32487849,0.000197,2]
[315178426,1708905045401,-5523.32487849,0.000197,2]
[315178427,1708905045410,-1002.29934527,0.000197,2]
[315178428,1708905045419,-500.0,0.00019725,2]
[315178429,1708905045428,-500.0,0.00019725,2]
[315178430,1708905045437,-500.0,0.00019725,2]
[315178431,1708905045446,-319.09963093,0.00019725,2]
[315178432,1708905045455,-500.0,0.00019725,2]
[315178433,1708905045464,-500.0,0.00019725,2]
[315178434,1708905045473,-500.0,0.00019725,2]
[315178435,1708905045481,-500.0,0.00019725,2]
[315178436,1708905045490,-500.0,0.00019726,2]
[315178437,1708905045499,-266.57275156,0.00019726,2]
[315178438,1708905045508,-500.0,0.00019726,2]
[315178439,1708905045517,-500.0,0.00019726,2]
[315178440,1708905045527,-500.0,0.00019726,2]
[315178441,1708905045539,-722.27,0.00019726,2]
[315178442,1708905045548,-1425.67,0.00019726,2]
[315178443,1708905045559,-500.0,0.00019726,2]
[315178444,1708905045568,-500.0,0.00019726,2]
[315178445,1708905045577,-1004.11866743,0.00019726,2]
[315178446,1708905045587,-500.0,0.00019726,2]
[315178447,1708905045597,-500.0,0.00019726,2]
[315178448,1708905045606,-562.13299876,0.00019726,2]
[315178449,1708905045615,-500.0,0.00019726,2]
[315178450,1708905045624,-500.0,0.00019726,2]
[315178451,1708905045633,-500.0,0.00019726,2]
[315178452,1708905045643,-500.0,0.00019726,2]
[315178453,1708905045652,-500.0,0.00019726,2]
[315178454,1708905045662,-500.0,0.00019726,2]
[315178455,1708905045672,-500.0,0.00019726,2]
[315178456,1708905045681,-500.0,0.00019726,2]
[315178457,1708905045690,-500.0,0.00019726,2]
[315178458,1708905045699,-500.0,0.00019726,2]
[315178459,1708905045708,-500.0,0.00019726,2]
[315178460,1708905045717,-500.0,0.00019726,2]
[315178461,1708905045726,-820.72,0.00019726,2]
[315178462,1708905045735,-500.0,0.00019726,2]
[315178463,1708905045744,-617.2,0.00019726,2]
[315178464,1708905045753,-500.0,0.00019726,2]
[315178465,1708905045766,-500.0,0.00019726,2]
[315178466,1708905045774,-500.0,0.00019726,2]
[315178467,1708905045783,-500.0,0.00019726,2]
[315178468,1708905045793,-500.0,0.00019726,2]
[315178469,1708905045802,-500.0,0.00019726,2]
[315178470,1708905045811,-500.0,0.00019726,2]
[315178471,1708905045821,-500.0,0.00019726,2]
[315178472,1708905045830,-500.0,0.00019726,2]
[315178473,1708905045841,-500.0,0.00019726,2]
[315178474,1708905045851,-500.0,0.00019726,2]
[315178475,1708905045859,-202.3141113,0.00019726,2]
[315178476,1708905045868,-500.0,0.00019726,2]
[315178477,1708905045877,-500.0,0.00019726,2]
[315178478,1708905045886,-500.0,0.00019726,2]
[315178479,1708905045895,-500.0,0.00019726,2]
[315178480,1708905045904,-500.0,0.00019726,2]
[315178481,1708905045913,-500.0,0.00019726,2]
[315178482,1708905045922,-500.0,0.00019726,2]
[315178483,1708905045931,-580.33377314,0.00019726,2]
[315178484,1708905045940,-500.0,0.00019726,2]
[315178485,1708905045949,-500.0,0.00019726,2]
[315178486,1708905045958,-500.0,0.00019726,2]
[315178487,1708905045967,-500.0,0.00019726,2]
[315178488,1708905045976,-500.0,0.00019726,2]
[315178489,1708905045986,-2101.54,0.00019726,2]
[315178490,1708905045995,-1308.09,0.00019726,2]
[315178491,1708905046004,-500.49581509,0.00019726,2]
[315178492,1708905046013,-500.0,0.00019726,2]
[315178493,1708905046022,-500.0,0.00019726,2]
[315178494,1708905046031,-500.0,0.00019726,2]
[315178495,1708905046040,-500.0,0.00019726,2]
[315178496,1708905046049,-500.0,0.00019726,2]
[315178497,1708905046058,-502.19470919,0.00019726,2]
[315178498,1708905046067,-1643.7,0.00019726,2]
[315178499,1708905046076,-500.0,0.00019726,2]
[315178500,1708905046087,-500.0,0.00019726,2]
[315178501,1708905046096,-500.0,0.00019726,2]
[315178502,1708905046105,-500.0,0.00019726,2]
[315178503,1708905046113,-500.0,0.00019726,2]
[315178504,1708905046123,-500.0,0.00019726,2]
[315178506,1708905046132,-500.0,0.00019726,2]
[315178508,1708905046141,-500.0,0.00019726,2]
[315178509,1708905046150,-500.0,0.00019726,2]
[315178510,1708905046159,-500.0,0.00019726,2]
[315178511,1708905046168,-500.0,0.00019726,2]
[315178512,1708905046178,-500.0,0.00019726,2]
[315178514,1708905046186,-405.33060812,0.00019726,2]
[315178515,1708905046195,-500.0,0.00019726,2]
[315178516,1708905046204,-500.0,0.00019726,2]
[315178517,1708905046214,-698.4,0.00019726,2]
[315178518,1708905046224,-500.0,0.00019726,2]
[315178519,1708905046234,-500.0,0.00019726,2]
[315178520,1708905046243,-645.63309768,0.00019726,2]
[315178521,1708905046253,-500.0,0.00019726,2]
[315178522,1708905046262,-500.0,0.00019726,2]
[315178523,1708905046271,-500.0,0.00019726,2]
[315178524,1708905046280,-500.0,0.00019726,2]
[315178525,1708905046289,-1799.5,0.00019726,2]
[315178527,1708905046299,-935.75,0.00019726,2]
[315178528,1708905046308,-500.0,0.00019726,2]
[315178529,1708905046317,-500.0,0.00019726,2]
[315178530,1708905046326,-500.0,0.00019726,2]
[315178531,1708905046337,-500.0,0.00019726,2]
[315178532,1708905046346,-439.43556303,0.00019726,2]
[315178533,1708905046354,-500.76231517,0.00019726,2]
[315178534,1708905046364,-500.0,0.00019726,2]
[315178535,1708905046373,-500.0,0.00019726,2]
[315178536,1708905046382,-500.39052972,0.00019726,2]
[315178537,1708905046390,-720.77,0.00019726,2]
[315178538,1708905046399,-500.0,0.00019726,2]
[315178539,1708905046408,-500.0,0.00019726,2]
[315178540,1708905046417,-500.0,0.00019726,2]
[315178541,1708905046426,-500.0,0.00019726,2]
[315178542,1708905046435,-500.0,0.00019726,2]
[315178543,1708905046444,-500.0,0.00019726,2]
[315178544,1708905046454,-500.0,0.00019726,2]
[315178545,1708905046462,-500.51240709,0.00019726,2]
[315178546,1708905046472,-500.0,0.00019726,2]
[315178547,1708905046481,-500.0,0.00019726,2]
[315178548,1708905046491,-500.0,0.00019726,2]
[315178549,1708905046500,-11294.05,0.00019726,2]
[315178550,1708905046510,-500.0,0.00019726,2]
[315178551,1708905046519,-500.0,0.00019726,2]
[315178552,1708905046528,-1834.68,0.00019726,2]
[315178553,1708905046537,-501.38504518,0.00019726,2]
[315178554,1708905046546,-2773.39,0.00019726,2]
[315178555,1708905046555,-500.0,0.00019726,2]
[315178556,1708905046565,-500.0,0.00019726,2]
[315178558,1708905046574,-500.0,0.00019726,2]
[315178560,1708905046585,-248.03889364,0.00019726,2]
[315178561,1708905046595,-3995.5,0.00019726,2]
[315178562,1708905046604,-500.0,0.00019726,2]
[315178563,1708905046613,-609.6,0.00019726,2]
[315178564,1708905046622,-485.95883318,0.00019726,2]
[315178566,1708905046631,-500.0,0.00019726,2]
[315178568,1708905046640,-500.0,0.00019726,2]
[315178569,1708905046650,-500.0,0.00019726,2]
[315178570,1708905046659,-1912.56,0.00019726,2]
[315178571,1708905046668,-1000.0,0.00019726,2]
[315178572,1708905046677,-500.0,0.00019726,2]
[315178573,1708905046687,-500.0,0.00019726,2]
[315178574,1708905046696,-500.0,0.00019726,2]
[315178575,1708905046705,-2620.14,0.00019726,2]
[315178576,1708905046714,-500.0,0.00019726,2]
[315178577,1708905046723,-500.0,0.00019726,2]
[315178578,1708905046732,-500.0,0.00019726,2]
[315178579,1708905046741,-500.0,0.00019726,2]
[315178580,1708905046750,-1998.21,0.00019726,2]
[315178581,1708905046760,-500.0,0.00019726,2]
[315178582,1708905046771,-500.0,0.00019726,2]